Cogmind - Beta 13 X1 @@@ ROGUE MODE // 2023.07.24 @ 21:04:25 Player: Unmode Result: Core destroyed Performance ------------- Evolutions (0) 0 Regions Visited (3) 600 Robots Destroyed (40) 200 Value Destroyed (1084) 1084 Prototype IDs (10) 200 Alien Tech Used (0) 0 Bonus (0) 0 TOTAL SCORE: 2084 Bonus ------- None Cogmind --------- Core Integrity 0/250 Matter 263/300 Energy 282/290 System Corruption 5% Temperature Critical (557) Movement Core (600) Ox11 Location -7/Recycling Parts ------- > --- POWER (1) -------- Improved Deuterium Engine > --- PROPULSION (2) --- Spiked Treads > --- UTILITY (2) ------ Small Storage Unit Layered Light Armor Plating > --- WEAPON (2) ------- Subdweller Beam Cannon Gauss Cannon > --- INVENTORY (8) ---- Arachnoskeleton Layered Light Armor Plating Layered Light Armor Plating Layered Light Armor Plating Subdweller Shrapnel Launcher Makeshift Hammer Peak State ------------ > --- POWER ------------ Improved Deuterium Engine > --- PROPULSION ------- Spiked Treads Spiked Treads > --- UTILITY ---------- Small Storage Unit Layered Light Armor Plating > --- WEAPON ----------- Subdweller Beam Cannon Gauss Cannon > --- INVENTORY -------- Arachnoskeleton Improved Light Armor Plating Subdweller Shrapnel Launcher Makeshift Hammer [Rating: 22] Favorites ----------- Power Light Ion Engine Engine Light Ion Engine Propulsion Light Treads Treads Light Treads Wheel Subdweller Monowheel Utility Small Storage Unit Device Structural Scanner Storage Small Storage Unit Protection Scrap Shield Weapon Subdweller Machine Gun Energy Gun Subdweller Laser Energy Cannon Subdweller Beam Cannon Ballistic Gun Subdweller Machine Gun Ballistic Cannon Gauss Cannon Launcher Grenade Launcher Impact Weapon Makeshift Hammer Build | -11 -10 -10 -7 ------- Run | Jun Mat Sub Rec Slots Evolved . | . . . . Power . | . . . . Propulsion . | . . . . Utility . | . . . . Weapon . | . . . . Parts Attached 59 | 7 2 44 6 Power 8 | 1 . 6 1 Engine 8 | 1 . 6 1 Core . | . . . . Reactor . | . . . . Propulsion 13 | 3 . 10 . Treads 7 | 2 . 5 . Leg . | . . . . Wheel 6 | 1 . 5 . Hover . | . . . . Flight . | . . . . Utility 8 | 1 1 2 4 Device 1 | . 1 . . Storage 2 | 1 . . 1 Processor . | . . . . Hackware . | . . . . Protection 5 | . . 2 3 Artifact . | . . . . Weapon 30 | 2 1 26 1 Energy Gun 6 | 1 . 5 . Energy Cannon 4 | . . 4 . Ballistic Gun 10 | 1 . 9 . Ballistic Cannon 2 | . . 1 1 Launcher 4 | . 1 3 . Special Weapon . | . . . . Impact Weapon 4 | . . 4 . Slashing Weapon . | . . . . Piercing Weapon . | . . . . Special Melee Weapon . | . . . . Unidentified Prototypes . | . . . . Corrupted Parts 1 | . . 1 . System Corruption 5 | . . 5 . Parts Lost 12 | . . 9 3 Power 3 | . . 2 1 Propulsion 4 | . . 3 1 Utility 2 | . . 1 1 Weapon 3 | . . 3 . Highest Loss Streak 3 | . . 3 2 To Critical Strikes . | . . . . Average Slot Usage (%) 89 | . 89 88 93 Engine 13 | . 14 12 13 Treads 18 | . 28 13 27 Wheel 9 | . . 13 . Device 2 | . 4 2 . Storage 8 | . 14 7 9 Protection 8 | . . 9 12 Energy Gun 6 | . 13 6 . Energy Cannon 4 | . . 2 14 Ballistic Gun 13 | . 14 14 8 Ballistic Cannon 2 | . . 1 5 Naked Turns . | . . . . Heaviest Build 35 | 11 14 35 34 Greatest Support 40 | 40 40 40 40 Greatest Overweight (x) 1 | . . 1 1 Average Overweight (x) . | . . . . Largest Inventory Capacity 8 | 8 8 8 8 Average Capacity 6 | 7 8 6 7 Most Carried 8 | 4 5 8 8 Average Carried 5 | 2 4 6 6 Final Capacity 8 | 8 8 5 8 Final Carried 8 | 4 5 5 8 Class Distribution -------------------- 51% | Mutant 37% | Subdweller-Mutant 11% | Derelict-Mutant Dominant Class ---------------- Mutant | -10/Materials Subdweller-Mutant | -10/Subcaves Mutant | -7/Recycling Resources | -11 -10 -10 -7 ----------- Run | Jun Mat Sub Rec Matter Collected 1383 | 209 134 876 164 Remotely . | . . . . Salvage Created 1492 | . 176 668 648 Parts 88 | . 24 44 20 Haulers Intercepted . | . . . . Recyclers Shooed 2 | . . . 2 Parts Field Recycled . | . . . . Retrieved Matter . | . . . . Parts Self-Destructed 15 | . . 15 . Prevented . | . . . . Kills | -11 -10 -10 -7 ------- Run | Jun Mat Sub Rec Combat Hostiles Destroyed 26 | . 1 20 5 Guns 15 | . 1 14 . Cannons 6 | . . 3 3 AOE 3 | . . 3 . Classes Destroyed 11 | . 4 4 3 Builder 5 | . 4 . 1 Tunneler 1 | . 1 . . Recycler 5 | . . . 5 Turret 2 | . . 2 . Watcher 1 | . 1 . . Swarmer 6 | . . 6 . Grunt 1 | . 1 . . Sentry 4 | . . 1 3 Hunter 1 | . . . 1 Programmer 1 | . . . 1 Subdweller 13 | . . 13 . Best Kill Streak 5 | . 3 5 3 Combat Bots Only 3 | . 1 3 3 Max Kills in Single Turn 2 | . 2 1 1 Gunslinging . | . . . . Exploded 1 | . . 1 . Melee . | . . . . Uniques/NPCs Destroyed . | . . . . Combat | -11 -10 -10 -7 -------- Run | Jun Mat Sub Rec Damage Taken 2660 | . 23 1875 762 Core 275 | . 12 139 124 Absorbed by Shields . | . . . . Core Remaining (%) 100 | 100 . . . Volleys Fired 190 | . 23 139 28 Largest 2 | . 2 2 2 Hottest 128 | . 60 110 128 Shots Fired 312 | . 44 223 45 Gun 231 | . 42 184 5 Cannon 74 | . . 34 40 Launcher 7 | . 2 5 . Special . | . . . . Kinetic 160 | . 21 121 18 Thermal 126 | . 21 78 27 Explosive 7 | . 2 5 . Electromagnetic 19 | . . 19 . Robot Hit Streak 15 | . 6 15 15 Robot Miss Streak 5 | . 2 4 5 Penetration Max 1 | . . . 1 Secondary Targets . | . . . . Shots Hit Robots 198 | . 25 141 32 Core Hits 61 | . 8 42 11 Critical Kills 3 | . . 1 2 Critical Parts Destroyed 2 | . 1 1 . Critical Strikes 7 | . 1 4 2 Meltdown 2 | . . . 2 Destroy 5 | . 1 4 . Melee Attacks 23 | . . 23 . Impact 23 | . . 23 . Slashing . | . . . . Piercing . | . . . . Sneak Attacks . | . . . . Combat Hostiles . | . . . . Follow-up Attacks . | . . . . Damage Inflicted 3909 | . 297 2591 1021 Guns 2125 | . 297 1752 76 Cannons 1473 | . . 528 945 Explosions 311 | . . 311 . Melee . | . . . . Ramming . | . . . . Kinetic 1949 | . 152 1383 414 Thermal 1400 | . 145 648 607 Explosive 270 | . . 270 . Electromagnetic 290 | . . 290 . Impact . | . . . . Slashing . | . . . . Piercing . | . . . . Highest Corruption 5 | . . 5 5 Average Corruption 5 | . . 5 5 Corruption Purged . | . . . . Corruption Blocked . | . . . . Effects 53 | . . 34 19 Message Errors 10 | . . 6 4 Matter Fused 19 | . . 12 7 Heat Flow Errors 8 | . . 4 4 Energy Discharges 5 | . . 3 2 Parts Rejected 1 | . . 1 . Parts Fused 1 | . . 1 . Data Loss (minor) 3 | . . 3 . Data Loss (major) 2 | . . 1 1 Misfires 1 | . . 1 . Alerts 1 | . . 1 . Weapon Failures 2 | . . 1 1 Overload Shots . | . . . . Overflow Damage 73 | . . . 73 Projectiles 73 | . . . 73 Explosions . | . . . . Melee . | . . . . Knockbacks 4 | . . 3 1 Impact . | . . . . Kinetic 4 | . . 3 1 Secondary . | . . . . Self-Inflicted Damage 47 | . . 47 . Shots 1 | . . 1 . Rammed . | . . . . Targets Rammed . | . . . . Kicked . | . . . . Crushed . | . . . . Highest Temperature 740 | . 12 274 740 Average Temperature 165 | . 8 86 201 Received Heat Transfer 591 | . 12 423 156 Effects 12 | . . . 12 Shutdowns 2 | . . . 2 Energy Bleed 3 | . . . 3 Interference 2 | . . . 2 Short Circuit 1 | . . . 1 Damage (minor) 2 | . . . 2 Damage (core) 2 | . . . 2 Siege Activations . | . . . . Robots Corrupted . | . . . . Combat Hostiles . | . . . . Parts Fried 3 | . . 3 . Impact Corruptions . | . . . . Robots Melted 2 | . . . 2 Combat Hostiles 2 | . . . 2 Parts Melted 4 | . . 1 3 Heat Transferred 1922 | . 325 820 777 Parts Sabotaged . | . . . . Parts Stolen . | . . . . Parts Stripped . | . . . . Power Chain Reactions 1 | . . 1 . Missiles Intercepted . | . . . . Alert | -11 -10 -10 -7 ------- Run | Jun Mat Sub Rec Peak Influence 271 | . 43 . 271 Initial 208 | . . . 208 Average 86 | . 17 . 140 Maximum Alert Level 1 | . . . 1 Low Security (%) 75 | 100 100 . 56 Level 1 24 | . . . 43 Level 2 . | . . . . Level 3 . | . . . . Level 4 . | . . . . Level 5 . | . . . . High Security . | . . . . Max Security . | . . . . Squads Dispatched 2 | . 2 . . Investigation 2 | . 2 . . Extermination . | . . . . Reinforcement . | . . . . Assault . | . . . . Garrison . | . . . . Intercept . | . . . . Searches Triggered . | . . . . Construction Impeded . | . . . . Haulers Reinforced . | . . . . Active Scanning Responses . | . . . . Cargo Convoy Interrupts . | . . . . Stealth | -11 -10 -10 -7 --------- Run | Jun Mat Sub Rec Distress Signals . | . . . . Communications Jammed . | . . . . Distress Signals . | . . . . Times Spotted 42 | . 2 35 5 Peak Tracking Total 4 | . 1 4 3 Tactical Retreats 3 | . . 3 . Traps | -11 -10 -10 -7 ------- Run | Jun Mat Sub Rec Traps Triggered 4 | . 2 2 . Indirectly . | . . . . Trap Hack Attempts . | . . . . Triggered . | . . . . Disarmed . | . . . . Reprogrammed . | . . . . Reused . | . . . . Traps Extracted . | . . . . Installed 2 | . . 2 . Triggered 4 | . . 4 . Machines | -11 -10 -10 -7 ---------- Run | Jun Mat Sub Rec Machines Disabled 4 | . . 3 1 Max in Single Turn 1 | . . 1 1 Machines Repaired . | . . . . Machines Sabotaged . | . . . . Overloaded Fab Kills . | . . . . Hacking | -11 -10 -10 -7 --------- Run | Jun Mat Sub Rec Machines Accessed 2 | . 1 1 . Terminals 1 | . 1 . . Fabricators . | . . . . Repair Stations . | . . . . Recycling Units . | . . . . Scanalyzers . | . . . . Garrison Access . | . . . . Total Hacks 4 | . 3 1 . Successful 1 | . . 1 . Failed 3 | . 3 . . Catastrophic 1 | . 1 . . Database Lockouts . | . . . . Manual 3 | . 3 . . Terminals 3 | . 3 . . Fabricators . | . . . . Repair Stations . | . . . . Recycling Units . | . . . . Scanalyzers . | . . . . Garrison Access . | . . . . Terminal Hacks 1 | . . 1 . Derelict Proto ID Bank 1 | . . 1 . Fabricator Hacks . | . . . . Repair Station Hacks . | . . . . Recycling Unit Hacks . | . . . . Scanalyzer . | . . . . Garrison Access Hacks . | . . . . Unauthorized Hacks . | . . . . Terminals . | . . . . Fabricators . | . . . . Repair Stations . | . . . . Recycling Units . | . . . . Scanalyzers . | . . . . Garrison Access . | . . . . Data Cores Recovered . | . . . . Used . | . . . . Hacking Detections 1 | . 1 . . Full Trace Events . | . . . . Feedback Events . | . . . . Feedback Blocked . | . . . . Robot Schematics Acquired . | . . . . Robots Built . | . . . . Authchips . | . . . . Time . | . . . . Total Robot Build Rating . | . . . . Part Schematics Acquired . | . . . . Parts Built . | . . . . Authchips . | . . . . Time . | . . . . Total Part Build Rating . | . . . . Parts Repaired . | . . . . Time . | . . . . Parts Recycled . | . . . . Recycled Matter . | . . . . Retrieved Matter . | . . . . Retrieved Components . | . . . . Parts Scanalyzed . | . . . . Part Schematics Acquired . | . . . . Parts Damaged . | . . . . Bothacking | -11 -10 -10 -7 ------------ Run | Jun Mat Sub Rec Used RIF Installer . | . . . . Robots Hacked . | . . . . Non-combat . | . . . . Combat . | . . . . Robot Hacks Applied . | . . . . Relay Couplers Released . | . . . . Fabnet Peak Effective % . | . . . . Robots Rewired . | . . . . Allies Hacked . | . . . . Hacks Repelled . | . . . . Allies | -11 -10 -10 -7 -------- Run | Jun Mat Sub Rec Total Allies . | . . . . Largest Group . | . . . . Highest-Rated Group . | . . . . Highest-Rated Ally . | . . . . Total Orders . | . . . . Ally Attacks . | . . . . Total Damage . | . . . . Kills . | . . . . Allies Corrupted . | . . . . Allies Melted . | . . . . Intel | -11 -10 -10 -7 ------- Run | Jun Mat Sub Rec Robot Analysis Total . | . . . . Derelict Logs Recovered 2 | . . 2 . Drone Launches . | . . . . Drone Recoveries . | . . . . Exploration | -11 -10 -10 -7 ------------- Run | Jun Mat Sub Rec Turns Passed 4885 | 74 636 3253 922 Spaces Moved 2767 | 44 341 1953 429 Core 1 | 1 . . . Treads 1806 | 29 341 1007 429 Legs . | . . . . Wheels 960 | 14 . 946 . Hover . | . . . . Flight . | . . . . Fastest Speed 50 | 50 160 110 160 Average Speed 148 | 132 160 137 190 Slowest Speed 260 | 160 160 260 260 Overloaded Moves . | . . . . Propulsion Burnouts . | . . . . Robots Hopped . | . . . . Cave-ins Triggered . | . . . . Exploration Rate (%) 55 | 4 48 84 87 Regions Visited 3 Branch Regions 2 Pre-discovered Areas . | . . . . Known Exits Taken . | . . . . Unknown Exits Taken 3 | 1 1 1 . Scrap Searched 17 | . . 17 . Spaces Dug 13 | . . 13 . Terrain Destroyed 45 | . 4 32 9 Melee 3 | . . 3 . Projectile 14 | . . 5 9 AOE 28 | . 4 24 . Terrain Rammed . | . . . . Walls Destroyed . | . . . . Machines Disabled . | . . . . Actions | -11 -10 -10 -7 --------- Run | Jun Mat Sub Rec Total 3213 | 57 387 2275 494 Wait 90 | 3 21 48 18 Move 2764 | 43 340 1952 429 Hop . | . . . . Pick Up 30 | 4 1 17 8 Fast Attach 24 | 6 1 15 2 Attach 8 | . . 6 2 Detach 2 | . . 2 . Swap 27 | 1 1 23 2 Drop 33 | . . 28 5 Fire 190 | . 23 139 28 Melee 23 | . . 23 . Ram . | . . . . Kick . | . . . . Crush . | . . . . Escape Stasis . | . . . . Rewire . | . . . . Trap 2 | . . 2 . Miscellaneous 20 | . . 20 . Route ------- -11/Junkyard -10/Materials (discovered 3 exits: [*Mat] / [*Min] / *Sub) -10/Subcaves (discovered 2 exits: [*Mat] / [*Rec]) -7/Recycling (discovered 1 exit: [*Fac]) History --------- Turn | Location | Event 39 | -11/Junkyard | Discovered new exit (range 14) 75 | -11/Junkyard | Entered Materials 304 | -10/Materials | Build established: Mutant 307 | -10/Materials | Discovered new exit (range 15) 534 | -10/Materials | Discovered new exit (range 7) 675 | -10/Materials | Discovered new exit (range 9) 711 | -10/Materials | Entered Subcaves 774 | -10/Subcaves | Discovered new exit (range 10) 950 | -10/Subcaves | Disturbed a concealed Subdweller 1003 | -10/Subcaves | Disturbed a concealed Subdweller 1141 | -10/Subcaves | Shifting Twisted Machinery released Shrapnel Trap 1175 | -10/Subcaves | Shifting Twisted Machinery released Sub. Power Source 1282 | -10/Subcaves | Shifting Twisted Machinery released Sub. Machine Gun 1367 | -10/Subcaves | Shifting Twisted Machinery released Barrage Gun 1467 | -10/Subcaves | Learned Materials terminal intel 1803 | -10/Subcaves | Visited 4L-MR0's lab 1870 | -10/Subcaves | Found Arachnoskeleton 2028 | -10/Subcaves | Lost 3 parts (2n1w) 2217 | -10/Subcaves | A swath of the cavern ceiling suddenly collapsed 2267 | -10/Subcaves | Learned Materials trap positions 2279 | -10/Subcaves | Build established: Derelict-Mutant 2453 | -10/Subcaves | A swath of the cavern ceiling suddenly collapsed 2461 | -10/Subcaves | Shifting Twisted Machinery released Piercing Trap 2707 | -10/Subcaves | Build established: Subdweller-Mutant 2711 | -10/Subcaves | Core integrity fell below 50% 3041 | -10/Subcaves | Shifting Twisted Machinery released Battle Cannon 3146 | -10/Subcaves | Ambushed by Subdwellers from Twisted Machinery 3284 | -10/Subcaves | Discovered new exit (range 13) 3964 | -10/Subcaves | Entered Recycling 4499 | -7/Recycling | Core integrity fell below 20% 4832 | -7/Recycling | Discovered new exit (range 16) 4837 | -7/Recycling | Build established: Mutant 4887 | -7/Recycling | Core destroyed Last Messages --------------- 04823_ R-06 Scavenger collects Lyr. Light Armor Plating. 04826_ R-06 Scavenger collects Imp. Light Armor Plating. 04832_ EXIT=FOUND 04853_ Acquired 24 matter. 04866_ GEWBDF6BXM3%N<%>&ORO5RI>2A 04874_ P-60 Hacker knocked back. 04877_ Slug penetrates P-60 Hacker. 04877_ Destroyed Mic. Nuclear Core. 04883_ H-55 Commando destroyed. 04886_ P-60 Hacker destroyed. 04887_ Power failure, Imp. Deuterium Engine shutdown. 04887_ Overheating: Core damaged (-27). Map ----- +----------------------------------------------------+ | | | | | | | | | | | | | | | | | | | | | | | | | | | ????????????????????????????????? | | ????????????????????????????????? | | ????????????????????????????????? | | ????????????????#????????#??????? | | ????????????????? ?????##;###???? | | ????????????????##"###?# #???? | | ????????????????? ?# < #???? | | ?????????????????? d # ###?? | | ???????????????????? # *#;??? | | ?????????????????????[%*% =%#??? | | ?????????????????????? +% %=###?? | | ???????????????????????# %%#?? | | ???????????????????????# @ %%#?? | | ???????????????????????# %%#?? | | ???????????????????????# ###?? | | ???????????????????????# #???? | | ???????????????????????# #???? | | ???????????????????????# #???? | | ???????????????????????# #???? | | #??????????????????????# #???? | | #??????????????????????#p #???? | | #??????????????????????# #???? | | #??????????????????????# #???? | | #??????????????????????# ###?? | | #?????????????????????## #?? | | #???????????#####+##### #?? | | #?????????### #?? | | #?????????#"" ###?? | | #?????????#T #???? | | ############# #???? | | ###???? | | #?????? | | #?????? | | ######+### ######+##+#?????? | | ???? # #???????????????? | | "??# # #???????????????? | | "#?# # #???????????????? | +----------------------------------------------------+ Best States ------------- Heat Dissipation 25 Energy Generation 16 Energy Capacity 290 Matter Stores 300 Matter Capacity 300 Sight Range 16 Terrain Scan Density 10 Armor Coverage 800 Evasion (%) 44 Recoil Reduction 2 Item Schematics ----------------- None Robot Schematics ------------------ None Fabricated ------------ Nothing Alien Tech Used ----------------- None Achievements -------------- None Challenges ------------ None Game ------ Seed TripodLatentChip Manual? 0 Play Time 01:23:25 Cumulative 589.8 hours Start 2023.07.19 @ 07:18:22 End 2023.07.24 @ 21:04:25 Sessions 3 Manual Loads 0 Difficulty Rogue Special Mode None Game No. 275 Rogue 268 Adventurer 7 Explorer 0 Win Type - Total 22 Types 13/0/4/5/0/0/0/0/0 Lore% 74 Gallery% 86 Achievement% 74 Wizard Run 0 Options --------- ASCII 0 Keyboard 1 Movement Numpad Keybinds 0 Fullscreen 2 Font 36/TerminusFine Map View 76x50 Tactical HUD 1 Map Filters NONE Filters LOW_CONTRAST(13,24,33) Steam 1 RUN: 722d07fe-954f-453c-8b5d-ff6ba72e2d6e